fUSD/lending_fUSD_20260122
["ID","MTS","AMOUNT","RATE_DAILY","PERIOD"]
[403061642,1769112658303,-500.0,0.00041369,60]
[403061643,1769112658312,-500.0,0.00041369,60]
[403061644,1769112658321,-500.0,0.00041369,60]
[403061645,1769112658331,-500.0,0.00041369,60]
[403061646,1769112658340,-500.0,0.00041369,60]
[403061647,1769112658350,-500.0,0.00041369,60]
[403061648,1769112658359,-500.0,0.00041369,60]
[403061649,1769112658368,-500.0,0.00041369,60]
[403061650,1769112658377,-500.0,0.00041369,60]
[403061651,1769112658386,-500.0,0.00041369,60]
[403061652,1769112658395,-500.0,0.00041369,60]
[403061653,1769112658403,-500.0,0.00041369,60]
[403061654,1769112658412,-500.0,0.00041369,60]
[403061655,1769112658421,-499.56502009,0.00041369,60]
[403061656,1769112658430,-500.0,0.00041369,60]
[403061657,1769112658440,-508.78192141,0.00041369,60]
[403061658,1769112658448,-500.0,0.00041369,60]
[403061659,1769112658457,-553.52688483,0.00041369,60]
[403061660,1769112658466,-500.0,0.00041369,60]
[403061661,1769112658475,-500.0,0.00041369,60]
[403061662,1769112658484,-500.0,0.00041369,60]
[403061663,1769112658492,-500.0,0.00041369,60]
[403061664,1769112658501,-500.0,0.00041369,60]
[403061665,1769112658510,-500.0,0.00041369,60]
[403061666,1769112658519,-500.0,0.00041369,60]
[403061667,1769112658528,-500.0,0.00041369,60]
[403061668,1769112658536,-500.0,0.00041369,60]
[403061669,1769112658545,-500.0,0.00041369,60]
[403061670,1769112658553,-156.54103649,0.00041369,60]
[403061671,1769112658562,-500.0,0.00041369,60]
[403061672,1769112658570,-500.0,0.00041369,60]
[403061673,1769112658579,-509.28712686,0.00041369,60]
[403061674,1769112658588,-500.0,0.00041369,60]
[403061675,1769112658596,-500.0,0.00041369,60]
[403061676,1769112658605,-500.0,0.00041369,60]
[403061677,1769112658614,-518.81385965,0.00041369,60]
[403061678,1769112658623,-500.0,0.00041369,60]
[403061679,1769112658631,-382.83802854,0.00041369,60]
[403061680,1769112658640,-500.0,0.00041369,60]
[403061681,1769112658648,-515.20504287,0.00041369,60]
[403061682,1769112658657,-1471.58,0.00041369,60]
[403061683,1769112658666,-500.0,0.00041369,60]
[403061684,1769112658674,-500.0,0.00041369,60]
[403061685,1769112658682,-500.0,0.00041369,60]
[403061686,1769112658691,-573.70749863,0.00041369,60]
[403061687,1769112658700,-500.0,0.00041369,60]
[403061688,1769112658708,-500.0,0.00041369,60]
[403061689,1769112658720,-550.44315144,0.00041369,60]
[403061690,1769112658729,-500.0,0.00041369,60]
[403061691,1769112658738,-500.0,0.00041369,60]
[403061692,1769112658747,-500.0,0.00041369,60]
[403061693,1769112658756,-362.83524554,0.00041369,60]
[403061694,1769112658765,-506.6,0.00041369,60]
[403061695,1769112658774,-510.62301288,0.00041369,60]
[403061696,1769112658783,-500.0,0.00041369,60]
[403061697,1769112658793,-500.0,0.00041369,60]
[403061698,1769112658802,-500.0,0.00041369,60]
[403061699,1769112658811,-407.99,0.00041369,2]
[403061700,1769112658820,-500.0,0.00041369,60]
[403061701,1769112658830,-500.0,0.00041369,60]
[403061702,1769112658839,-500.0,0.00041369,60]
[403061703,1769112658848,-500.0,0.00041369,60]
[403061704,1769112658857,-500.0,0.00041369,60]
[403061705,1769112658866,-500.0,0.00041369,60]
[403061706,1769112658875,-517.45708652,0.00041369,60]
[403061707,1769112658884,-500.0,0.00041369,60]
[403061708,1769112658892,-518.93,0.00041369,60]
[403061709,1769112658901,-500.0,0.00041369,60]
[403061710,1769112658909,-500.0,0.00041369,60]
[403061711,1769112658918,-500.0,0.00041369,60]
[403061712,1769112658927,-500.0,0.00041369,60]
[403061713,1769112658936,-552.45,0.00041369,60]
[403061714,1769112658946,-500.0,0.00041369,60]
[403061715,1769112658954,-500.0,0.00041369,60]
[403061716,1769112658963,-500.0,0.00041369,60]
[403061717,1769112658972,-500.0,0.00041369,60]
[403061718,1769112658982,-500.0,0.00041369,60]
[403061719,1769112658991,-500.0,0.00041369,60]
[403061720,1769112658999,-507.36161978,0.00041369,60]
[403061721,1769112659008,-503.23710169,0.00041369,12]
[403061722,1769112659017,-500.0,0.00041369,60]
[403061723,1769112659026,-500.0,0.00041369,60]
[403061724,1769112659035,-500.0,0.00041369,60]
[403061725,1769112659044,-500.0,0.00041369,60]
[403061726,1769112659053,-500.0,0.00041369,60]
[403061727,1769112659062,-500.0,0.00041369,60]
[403061728,1769112659071,-502.86,0.00041369,60]
[403061729,1769112659080,-500.0,0.00041369,60]
[403061730,1769112659089,-500.0,0.00041369,60]
[403061731,1769112659098,-500.0,0.00041369,60]
[403061732,1769112659106,-500.0,0.00041369,60]
[403061733,1769112659115,-500.0,0.00041369,60]
[403061734,1769112659124,-500.0,0.00041369,60]
[403061735,1769112659133,-500.0,0.00041369,60]
[403061736,1769112659142,-500.0,0.00041369,60]
[403061737,1769112659151,-500.0,0.00041369,60]
[403061738,1769112659160,-500.0,0.00041369,60]
[403061739,1769112659169,-500.0,0.00041369,60]
[403061740,1769112659178,-527.97,0.00041369,60]
[403061741,1769112659187,-500.0,0.00041369,60]
[403061742,1769112659196,-500.0,0.00041369,60]
[403061743,1769112659205,-550.73325685,0.00041369,60]
[403061744,1769112659214,-500.0,0.00041369,60]
[403061745,1769112659222,-500.0,0.00041369,60]
[403061746,1769112659231,-500.0,0.00041369,60]
[403061747,1769112659241,-500.0,0.00041369,60]
[403061748,1769112659250,-500.0,0.00041369,60]
[403061749,1769112659259,-500.0,0.00041369,60]
[403061750,1769112659269,-500.0,0.00041369,60]
[403061751,1769112659278,-500.0,0.00041369,60]
[403061752,1769112659287,-500.0,0.00041369,60]
[403061753,1769112659297,-500.0,0.00041369,60]
[403061754,1769112659306,-500.0,0.00041369,60]
[403061755,1769112659315,-500.0,0.00041369,60]
[403061756,1769112659324,-500.0,0.00041369,60]
[403061757,1769112659333,-538.9202438,0.00041369,60]
[403061758,1769112659342,-500.0,0.00041369,60]
[403061759,1769112659351,-500.0,0.00041369,60]
[403061760,1769112659360,-500.0,0.00041369,60]
[403061761,1769112659369,-500.0,0.00041369,60]
[403061762,1769112659378,-311.14766791,0.00041369,60]
[403061763,1769112659386,-500.0,0.00041369,60]
[403061764,1769112659396,-500.0,0.00041369,60]
[403061765,1769112659405,-500.0,0.00041369,60]
[403061766,1769112659414,-500.0,0.00041369,60]
[403061767,1769112659424,-500.0,0.00041369,60]
[403061768,1769112659433,-500.0,0.00041369,60]
[403061769,1769112659442,-509.40146211,0.00041369,60]
[403061770,1769112659452,-500.0,0.00041369,60]
[403061771,1769112659461,-500.0,0.00041369,60]
[403061772,1769112659470,-500.0,0.00041369,60]
[403061773,1769112659479,-519.91365904,0.00041369,60]
[403061774,1769112659489,-500.0,0.00041369,60]
[403061775,1769112659498,-500.0,0.00041369,60]
[403061776,1769112659508,-500.0,0.00041369,60]
[403061777,1769112659517,-500.0,0.00041369,60]
[403061778,1769112659527,-151.0,0.00041369,120]
[403061779,1769112659536,-500.0,0.00041369,60]
[403061780,1769112659546,-251.051733,0.00041369,7]
[403061781,1769112659555,-151.0,0.00041369,120]
[403061782,1769112659565,-251.051733,0.00041369,7]
[403061783,1769112659573,-500.0,0.00041369,60]
[403061784,1769112659583,-500.0,0.00041369,60]
[403061785,1769112659593,-500.0,0.00041369,60]
[403061786,1769112659603,-500.0,0.00041369,60]
[403061787,1769112659613,-251.051733,0.00041369,7]
[403061788,1769112659622,-516.85,0.00041369,60]
[403061789,1769112659631,-502.17669269,0.00041369,60]
[403061790,1769112659640,-251.051733,0.00041369,7]
[403061791,1769112659650,-500.0,0.00041369,60]
[403061792,1769112659659,-500.0,0.00041369,60]
[403061793,1769112659668,-500.0,0.00041369,60]
[403061794,1769112659677,-500.0,0.00041369,60]
[403061795,1769112659686,-154.69221,0.00041369,120]
[403061796,1769112659695,-154.69221,0.00041369,120]
[403061797,1769112659704,-186.049964,0.00041369,120]
[403061798,1769112659714,-500.0,0.00041369,60]
[403061799,1769112659725,-500.0,0.00041369,60]
[403061800,1769112659734,-186.049964,0.00041369,120]
[403061801,1769112659743,-162.5,0.00041369,120]
[403061802,1769112659752,-500.0,0.00041369,60]
[403061803,1769112659762,-154.69221,0.00041369,120]
[403061804,1769112659771,-500.0,0.00041369,60]
[403061805,1769112659780,-186.049964,0.00041369,120]
[403061806,1769112659792,-162.5,0.00041369,120]
[403061807,1769112659801,-154.69221,0.00041369,120]
[403061808,1769112659810,-186.049964,0.00041369,120]
[403061809,1769112659820,-162.5,0.00041369,120]
[403061810,1769112659829,-161.151108,0.00041369,120]
[403061811,1769112659838,-500.0,0.00041369,60]
[403061812,1769112659848,-500.0,0.00041369,60]
[403061813,1769112659858,-162.5,0.00041369,120]
[403061814,1769112659867,-151.0,0.00041369,120]
[403061815,1769112659876,-161.151108,0.00041369,120]
[403061816,1769112659885,-455.290278,0.00041369,90]
[403061817,1769112659894,-500.0,0.00041369,60]
[403061818,1769112659903,-161.151108,0.00041369,120]
[403061819,1769112659912,-455.290278,0.00041369,90]
[403061820,1769112659921,-500.0,0.00041369,60]
[403061821,1769112659930,-161.151108,0.00041369,120]
[403061822,1769112659939,-455.290278,0.00041369,90]
[403061823,1769112659949,-682.39,0.00041369,60]
[403061824,1769112659958,-500.0,0.00041369,60]
[403061825,1769112659967,-500.0,0.00041369,60]
[403061826,1769112659976,-455.290278,0.00041369,90]
[403061827,1769112659985,-600.02,0.00041369,60]
[403061828,1769112659994,-508.97705801,0.00041369,60]
[403061829,1769112660004,-500.0,0.00041369,60]
[403061830,1769112660013,-642.85,0.00041369,60]
[403061831,1769112660022,-500.0,0.00041369,60]
[403061832,1769112660031,-703.01,0.00041369,60]
[403061833,1769112660040,-500.0,0.00041369,60]
[403061834,1769112660049,-525.28,0.00041369,60]
[403061835,1769112660059,-500.0,0.00041369,60]
[403061836,1769112660068,-519.04819668,0.00041369,60]
[403061837,1769112660077,-20958.29,0.00041369,60]
[403061838,1769112660087,-500.0,0.00041369,60]
[403061839,1769112660097,-500.0,0.00041369,60]
[403061840,1769112660106,-500.0,0.00041369,60]
[403061841,1769112660117,-500.0,0.00041369,60]
[403061842,1769112660127,-500.0,0.00041369,60]
[403061843,1769112660136,-500.0,0.00041369,60]
[403061844,1769112660145,-529.28,0.00041369,60]
[403061845,1769112660155,-500.0,0.00041369,60]
[403061846,1769112660164,-500.0,0.00041369,60]
[403061847,1769112660174,-500.0,0.00041369,60]
[403061848,1769112660183,-500.0,0.00041369,60]
[403061849,1769112660194,-500.0,0.00041369,60]
[403061850,1769112660205,-500.0,0.00041369,60]
[403061851,1769112660215,-500.0,0.00041369,60]
[403061852,1769112660225,-507.71683052,0.00041369,60]
[403061853,1769112660235,-166.17299802,0.00041369,60]
[403061854,1769112660245,-500.0,0.00041369,60]
[403061855,1769112660255,-575.03,0.00041369,60]
[403061856,1769112660264,-500.0,0.00041369,60]
[403061857,1769112660274,-587.78,0.00041369,60]
[403061858,1769112660284,-500.0,0.00041369,60]
[403061859,1769112660293,-578.41,0.00041369,60]
[403061860,1769112660303,-513.76668612,0.00041369,60]
[403061861,1769112660312,-229.520658,0.00041369,120]
[403061862,1769112660322,-749.36,0.00041369,60]
[403061863,1769112660331,-229.520658,0.00041369,120]
[403061864,1769112660342,-500.0,0.00041369,2]
[403061865,1769112660353,-229.520658,0.00041369,120]
[403061866,1769112660364,-500.0,0.00041369,60]
[403061867,1769112660374,-500.0,0.00041369,60]
[403061868,1769112660383,-546.62,0.00041369,60]
[403061869,1769112660393,-229.520658,0.00041369,120]
[403061870,1769112660403,-500.0,0.00041369,60]
[403061871,1769112660413,-500.0,0.00041369,60]
[403061872,1769112660422,-500.0,0.00041369,60]
[403061873,1769112660432,-500.0,0.00041369,60]
[403061874,1769112660441,-605.61,0.00041369,60]
[403061875,1769112660451,-500.0,0.00041369,60]
[403061876,1769112660461,-151.0,0.00041369,120]
[403061877,1769112660471,-500.0,0.00041369,60]
[403061878,1769112660480,-500.0,0.00041369,60]
[403061879,1769112660490,-151.0,0.00041369,120]
[403061880,1769112660500,-604.9,0.00041369,60]
[403061881,1769112660510,-632.67,0.00041369,60]
[403061882,1769112660519,-500.0,0.00041369,60]
[403061883,1769112660528,-500.0,0.00041369,60]
[403061884,1769112660537,-482.06240537,0.00041369,60]
[403061885,1769112660547,-269.58606218,0.00041369,60]
[403061886,1769112660556,-500.0,0.00041369,60]
[403061887,1769112660566,-151.0,0.00041369,120]
[403061888,1769112660576,-500.0,0.00041369,60]
[403061889,1769112660586,-500.0,0.00041369,60]
[403061890,1769112660595,-500.0,0.00041369,60]
[403061891,1769112660606,-500.0,0.00041369,60]
[403061892,1769112660616,-898.07,0.00041369,60]
[403061893,1769112660626,-500.0,0.00041369,60]
[403061894,1769112660635,-831.84,0.00041369,60]
[403061895,1769112660645,-500.0,0.00041369,60]
[403061896,1769112660654,-580.01,0.00041369,60]
[403061897,1769112660664,-529.14,0.00041369,60]
[403061898,1769112660674,-500.0,0.00041369,60]
[403061899,1769112660684,-500.0,0.00041369,60]
[403061900,1769112660693,-500.0,0.00041369,60]
[403061901,1769112660703,-525.22,0.00041369,60]
[403061902,1769112660715,-553.94,0.00041369,60]
[403061903,1769112660725,-500.0,0.00041369,60]
[403061904,1769112660735,-365.89955565,0.00041369,60]
[403061905,1769112660744,-500.0,0.00041369,60]
[403061906,1769112660755,-500.0,0.00041369,60]
[403061907,1769112660764,-500.0,0.00041369,60]
[403061908,1769112660774,-500.0,0.00041369,60]
[403061909,1769112660784,-500.0,0.00041369,60]
[403061910,1769112660794,-513.75,0.00041369,60]
[403061911,1769112660803,-500.0,0.00041369,60]
[403061912,1769112660812,-500.0,0.00041369,60]
[403061913,1769112660822,-500.0,0.00041369,60]
[403061914,1769112660832,-500.0,0.00041369,60]
[403061915,1769112660842,-555.08,0.00041369,60]
[403061916,1769112660852,-500.0,0.00041369,60]
[403061917,1769112660863,-513.82,0.00041369,60]
[403061918,1769112660872,-500.0,0.00041369,60]
[403061919,1769112660882,-500.0,0.00041369,60]
[403061920,1769112660891,-572.54,0.00041369,60]
[403061921,1769112660901,-920.19,0.00041369,60]
[403061922,1769112660911,-500.0,0.00041369,2]
[403061923,1769112660920,-500.0,0.00041369,2]
[403061924,1769112660930,-416.53504646,0.00041369,60]
[403061925,1769112660939,-500.0,0.00041369,60]
[403061926,1769112660949,-534.9,0.00041369,60]
[403061927,1769112660958,-151.0,0.00041369,120]
[403061928,1769112660968,-561.71,0.00041369,60]
[403061929,1769112660978,-500.0,0.00041369,60]
[403061930,1769112660988,-500.0,0.00041369,60]
[403061931,1769112660998,-151.0,0.00041369,120]
[403061932,1769112661007,-570.16,0.00041369,60]
[403061933,1769112661017,-151.0,0.00041369,120]
[403061934,1769112661027,-503.10068633,0.00041369,5]
[403061935,1769112661037,-500.0,0.00041369,60]
[403061936,1769112661047,-607.75,0.00041369,60]
[403061937,1769112661056,-500.0,0.00041369,60]
[403061938,1769112661066,-500.0,0.00041369,60]
[403061939,1769112661076,-162.356865,0.00041369,120]
[403061940,1769112661086,-151.0,0.00041369,120]
[403061941,1769112661095,-500.0,0.00041369,60]
[403061942,1769112661106,-500.0,0.00041369,60]
[403061943,1769112661115,-500.0,0.00041369,60]
[403061944,1769112661125,-500.0,0.00041369,60]
[403061945,1769112661135,-534.94,0.00041369,60]
[403061946,1769112661145,-500.0,0.00041369,60]
[403061947,1769112661155,-500.0,0.00041369,60]
[403061948,1769112661164,-516.75,0.00041369,60]
[403061949,1769112661174,-500.0,0.00041369,60]
[403061950,1769112661184,-500.0,0.00041369,60]
[403061951,1769112661193,-500.0,0.00041369,60]
[403061952,1769112661203,-590.76,0.00041369,60]
[403061953,1769112661213,-500.0,0.00041369,60]
[403061954,1769112661222,-576.1,0.00041369,60]
[403061955,1769112661232,-500.0,0.00041369,60]
[403061956,1769112661242,-500.0,0.00041369,60]
[403061957,1769112661251,-400.964053,0.00041369,120]
[403061958,1769112661261,-400.964053,0.00041369,120]
[403061959,1769112661272,-500.0,0.00041369,60]
[403061960,1769112661282,-500.0,0.00041369,60]
[403061961,1769112661292,-400.964053,0.00041369,120]
[403061962,1769112661302,-443.675016,0.00041369,120]
[403061963,1769112661312,-500.0,0.00041369,60]
[403061964,1769112661321,-400.964053,0.00041369,120]
[403061965,1769112661331,-500.0,0.00041369,60]
[403061966,1769112661340,-551.69895704,0.00041369,60]
[403061967,1769112661351,-500.0,0.00041369,60]
[403061968,1769112661362,-443.675016,0.00041369,120]
[403061969,1769112661372,-300.0,0.00041369,2]
[403061970,1769112661382,-500.0,0.00041369,14]
[403061971,1769112661391,-500.0,0.00041369,60]
[403061972,1769112661401,-500.0,0.00041369,60]
[403061973,1769112661411,-443.675016,0.00041369,120]
[403061974,1769112661421,-670.85,0.00041369,60]
[403061975,1769112661431,-510.47,0.00041369,60]
[403061976,1769112661442,-443.675016,0.00041369,120]
[403061977,1769112661452,-500.0,0.00041369,60]
[403061978,1769112661462,-575.57728915,0.00041369,60]
[403061979,1769112661473,-500.0,0.00041369,60]
[403061980,1769112661482,-500.0,0.00041369,60]
[403061981,1769112661492,-500.0,0.00041369,60]
[403061982,1769112661502,-500.0,0.00041369,60]
[403061983,1769112661513,-590.38,0.00041369,60]
[403061984,1769112661523,-500.0,0.00041369,60]
[403061985,1769112661533,-500.0,0.00041369,60]
[403061986,1769112661543,-500.0,0.00041369,60]
[403061987,1769112661553,-500.0,0.00041369,60]
[403061988,1769112661563,-500.0,0.00041369,60]
[403061989,1769112661573,-500.0,0.00041369,60]
[403061990,1769112661583,-579.91,0.00041369,60]
[403061991,1769112661594,-500.0,0.00041369,60]
[403061992,1769112661607,-500.0,0.00041369,60]
[403061993,1769112661618,-500.0,0.00041369,16]
[403061994,1769112661628,-500.0,0.00041369,60]
[403061995,1769112661638,-500.0,0.00041369,60]
[403061996,1769112661648,-507.83,0.00041369,60]
[403061997,1769112661658,-500.0,0.00041369,60]
[403061998,1769112661668,-500.0,0.00041369,60]
[403061999,1769112661678,-618.62,0.00041369,60]
[403062000,1769112661687,-500.0,0.00041369,60]
[403062001,1769112661697,-500.0,0.00041369,60]
[403062002,1769112661706,-500.0,0.00041369,60]
[403062003,1769112661718,-599.31,0.00041369,60]
[403062004,1769112661728,-500.0,0.00041369,60]
[403062005,1769112661738,-500.0,0.00041369,60]
[403062006,1769112661747,-500.0,0.00041369,60]
[403062007,1769112661757,-500.0,0.00041369,60]
[403062008,1769112661766,-500.0,0.00041369,60]
[403062009,1769112661776,-500.0,0.00041369,60]
[403062010,1769112661786,-500.0,0.00041369,60]
[403062011,1769112661796,-500.0,0.00041369,60]
[403062012,1769112661806,-273.1355311,0.00041369,60]
[403062013,1769112661815,-500.0,0.00041369,60]
[403062014,1769112661825,-505.16591554,0.00041369,60]
[403062015,1769112661834,-151.0,0.00041369,120]
[403062016,1769112661844,-500.0,0.00041369,60]
[403062017,1769112661854,-151.0,0.00041369,120]
[403062018,1769112661864,-500.0,0.00041369,60]
[403062019,1769112661874,-500.0,0.00041369,60]
[403062020,1769112661884,-500.0,0.00041369,60]
[403062021,1769112661893,-500.0,0.00041369,60]
[403062022,1769112661904,-545.78,0.00041369,60]
[403062023,1769112661914,-500.0,0.00041369,60]
[403062024,1769112661923,-500.0,0.00041369,60]
[403062025,1769112661933,-500.0,0.00041369,60]
[403062026,1769112662151,-500.0,0.00041369,60]
[403062027,1769112662192,-500.0,0.00041369,60]
[403062028,1769112662202,-213.541216,0.00041369,120]
[403062029,1769112662212,-508.5600742,0.00041369,60]
[403062030,1769112662221,-500.0,0.00041369,60]
[403062031,1769112662230,-573.10572391,0.00041369,60]
[403062032,1769112662239,-151.0,0.00041369,120]
[403062033,1769112662249,-213.541216,0.00041369,120]
[403062034,1769112662258,-213.541216,0.00041369,120]
[403062035,1769112662268,-500.0,0.00041369,60]
[403062036,1769112662277,-531.39,0.00041369,60]
[403062037,1769112662287,-617.01,0.00041369,60]
[403062038,1769112662297,-500.0,0.00041369,60]
[403062039,1769112662306,-213.541216,0.00041369,120]
[403062040,1769112662316,-500.0,0.00041369,60]
[403062041,1769112662326,-617.19,0.00041369,60]
[403062042,1769112662336,-500.0,0.00041369,60]
[403062043,1769112662345,-271.61566,0.00041369,120]
[403062044,1769112662356,-205.76259416,0.00041369,60]
[403062045,1769112662365,-271.61566,0.00041369,120]
[403062046,1769112662375,-500.0,0.00041369,60]
[403062047,1769112662384,-500.0,0.00041369,60]
[403062048,1769112662393,-500.0,0.00041369,60]
[403062049,1769112662403,-271.61566,0.00041369,120]
[403062050,1769112662412,-500.0,0.00041369,60]
[403062051,1769112662421,-500.0,0.00041369,60]
[403062052,1769112662430,-500.0,0.00041369,60]
[403062053,1769112662440,-271.61566,0.00041369,120]
[403062054,1769112662450,-592.24,0.00041369,60]
[403062055,1769112662459,-595.06,0.00041369,60]
[403062056,1769112662469,-505.46906827,0.00041369,60]
[403062057,1769112662478,-500.0,0.00041369,60]
[403062058,1769112662487,-500.0,0.00041369,60]
[403062059,1769112662497,-287.272719,0.00041369,120]
[403062060,1769112662507,-500.0,0.00041369,60]
[403062061,1769112662516,-500.0,0.00041369,60]
[403062062,1769112662525,-287.272719,0.00041369,120]
[403062063,1769112662535,-500.0,0.00041369,60]
[403062064,1769112662545,-500.0,0.00041369,60]
[403062065,1769112662554,-287.272719,0.00041369,120]
[403062066,1769112662564,-809.41,0.00041369,60]
[403062067,1769112662573,-500.0,0.00041369,60]
[403062068,1769112662583,-600.81,0.00041369,60]
[403062069,1769112662592,-287.272719,0.00041369,120]
[403062070,1769112662601,-605.70206336,0.00041369,60]
[403062071,1769112662611,-500.0,0.00041369,60]
[403062072,1769112662620,-500.0,0.00041369,60]
[403062073,1769112662629,-2041.48,0.00041369,60]
[403062074,1769112662638,-500.0,0.00041369,60]
[403062075,1769112662648,-293.09333841,0.00041369,60]
[403062076,1769112662657,-500.0,0.00041369,60]
[403062077,1769112662667,-246.92001999,0.00041369,60]
[403062078,1769112712542,-2500.0,0.00017,2]
[403062079,1769112754043,11395.6236,0.00017,2]
[403062080,1769112768747,652504.3764,0.000169,2]
[403062082,1769113644810,500.0,0.000176,30]
[403062083,1769113645776,900.0,0.00013,2]
[403062119,1769113832300,-556.63875,0.00015839,2]
[403062120,1769113832310,-283.0,0.00015919,2]
[403062121,1769113832319,-108.32322807,0.00015999,2]
[403062122,1769113832330,-191.67677193,0.00015999,2]
[403062123,1769113832339,-1200.0,0.00015999,2]
[403062124,1769113832349,-300.0,0.00015999,2]
[403062125,1769113832358,-2806.64307172,0.00016,4]
[403062126,1769113832391,-6420.0,0.00016,4]
[403062127,1769113832402,-524.45373049,0.00016,4]
[403062128,1769113832413,-871.98025582,0.00016,4]
[403062129,1769113832424,-390.29344023,0.00016,4]
[403062130,1769113832434,-808.01349314,0.00016,4]
[403062131,1769113832446,-837.98650686,0.00016,4]
[403062132,1769113832457,-869.83543984,0.00016,4]
[403062133,1769113832467,-150.0000009,0.00016571,2]
[403062134,1769113832476,-348.62,0.00016692,2]
[403062135,1769113832485,-216.74260354,0.000168,2]
[403062136,1769113832495,-14002.02270855,0.000168,2]
[403062137,1769113832504,-10604.5763032,0.000168,2]
[403062138,1769113832526,-2424.42970357,0.000168,2]
[403062139,1769113832537,-293.48857706,0.000168,2]
[403062140,1769113832548,-3444.2674592,0.000168,2]
[403062141,1769113832567,-558.76267928,0.000168,2]
[403062142,1769113832586,-1331.26324519,0.000168,2]
[403062143,1769113832598,-7631.69981,0.000168,2]
[403062144,1769113832610,-607.56498033,0.000168,2]
[403062145,1769113832621,-1013.08682692,0.000168,2]
[403062146,1769113832652,-3757.54575348,0.000168,2]
[403062147,1769113832663,-408.2574532,0.000168,2]
[403062148,1769113832674,-323.3292545,0.000168,2]
[403062152,1769113837596,-390.805764,0.00016799,2]
[403062154,1769113837654,-109.194236,0.00016799,2]
[403062155,1769113837667,-242.68694935,0.00016799,2]
[403062156,1769113837764,-257.31305065,0.00016799,2]
[403062157,1769113837773,-500.0,0.00016799,2]
[403062158,1769113837782,-260.87790518,0.00016799,2]
[403062159,1769113837793,-239.12209482,0.00016799,2]
[403062160,1769113837801,-197.63013893,0.00016799,2]
[403062161,1769113837813,-302.36986107,0.00016799,2]
[403062162,1769113837822,-500.0,0.00016799,2]
[403062164,1769113837831,-221.22,0.00016799,2]
[403062166,1769113837839,-454.80517394,0.00016799,2]
[403062172,1769113837881,-45.19482606,0.00016799,2]
[403062174,1769113837890,-518.16996115,0.00016799,2]
[403062175,1769113837900,-500.0,0.00016799,2]
[403062178,1769113837910,-500.0,0.00016799,2]
[403062180,1769113837920,-500.0,0.00016799,2]
[403062181,1769113837930,-500.0,0.00016799,2]
[403062183,1769113837939,-500.0,0.00016799,2]
[403062186,1769113837948,-500.0,0.00016799,2]
[403062188,1769113837958,-500.0,0.00016799,2]
[403062190,1769113837967,-500.0,0.00016799,2]
[403062192,1769113837976,-500.0,0.00016799,2]
[403062193,1769113837985,-500.0,0.00016799,2]
[403062196,1769113837995,-476.22915517,0.00016799,2]
[403062198,1769113838010,-500.0,0.00016799,2]
[403062199,1769113838019,-967601.72795407,0.000168,2]
[403062202,1769113838029,-658.37296837,0.0001689,2]
[403062205,1769113838040,-238.0,0.00016898,2]